[Event "*** Titled Tuesday Blitz"]
[Site "Chess.com"]
[Date "2019.07.02"]
[Round "1"]
[White "deBaller"]
[Black "resha1988"]
[Result "1/2-1/2"]
[WhiteElo "2394"]
[BlackElo "2746"]
[TimeControl "180+2"]
[EndTime "13:10:56 PDT"]
[Termination "Game drawn - insufficient material"]

1. e4 {[%clk 0:03:01.9]} 1... c6 {[%clk 0:02:32.1]} 2. d4 {[%clk 0:03:02.3]}
2... d5 {[%clk 0:02:34]} 3. exd5 {[%clk 0:03:04.2]} 3... cxd5 {[%clk 0:02:35.5]}
4. Bd3 {[%clk 0:03:05.8]} 4... Nf6 {[%clk 0:02:36.7]} 5. c3 {[%clk 0:03:06.8]}
5... Nc6 {[%clk 0:02:37.7]} 6. Bf4 {[%clk 0:03:07.3]} 6... g6 {[%clk 0:02:35.5]}
7. Nf3 {[%clk 0:03:07.7]} 7... Bg7 {[%clk 0:02:37]} 8. O-O {[%clk 0:03:07.6]}
8... O-O {[%clk 0:02:38.1]} 9. Nbd2 {[%clk 0:03:08.2]} 9... Bf5 {[%clk
0:02:35.2]} 10. Bxf5 {[%clk 0:03:08.6]} 10... gxf5 {[%clk 0:02:33.5]} 11. Ne5
{[%clk 0:03:09.4]} 11... e6 {[%clk 0:02:31.8]} 12. Re1 {[%clk 0:03:10]} 12...
Ne4 {[%clk 0:02:31.2]} 13. Nxe4 {[%clk 0:02:58.8]} 13... fxe4 {[%clk 0:02:33.1]}
14. Re3 {[%clk 0:02:44]} 14... f6 {[%clk 0:02:30.1]} 15. Nxc6 {[%clk 0:02:40.7]}
15... bxc6 {[%clk 0:02:32]} 16. Rg3 {[%clk 0:02:39.5]} 16... Rf7 {[%clk
0:02:28]} 17. Qa4 {[%clk 0:02:39.3]} 17... Qd7 {[%clk 0:02:26.8]} 18. Bh6 {[%clk
0:02:31.9]} 18... Kh8 {[%clk 0:02:25.5]} 19. Bxg7+ {[%clk 0:02:32.1]} 19... Rxg7
{[%clk 0:02:27.4]} 20. Rxg7 {[%clk 0:02:32.5]} 20... Kxg7 {[%clk 0:02:29.3]} 21.
b4 {[%clk 0:02:29.2]} 21... Kf7 {[%clk 0:02:15.7]} 22. Qa6 {[%clk 0:02:27.9]}
22... Rb8 {[%clk 0:02:15.1]} 23. a4 {[%clk 0:02:26.1]} 23... Qc7 {[%clk
0:02:11.1]} 24. Re1 {[%clk 0:02:21.3]} 24... Qb6 {[%clk 0:02:09.7]} 25. Qe2
{[%clk 0:02:20.9]} 25... Rg8 {[%clk 0:01:54.6]} 26. Qh5+ {[%clk 0:02:19.3]}
26... Kg7 {[%clk 0:01:54.1]} 27. Re3 {[%clk 0:02:18.7]} 27... Kh8 {[%clk
0:01:53.1]} 28. Qf7 {[%clk 0:02:08]} 28... Qd8 {[%clk 0:01:39.7]} 29. Rh3 {[%clk
0:02:01.7]} 29... Rg7 {[%clk 0:01:30.2]} 30. Qxe6 {[%clk 0:02:01.7]} 30... Qg8
{[%clk 0:01:28.3]} 31. Qxf6 {[%clk 0:01:56.4]} 31... Qf7 {[%clk 0:00:57]} 32.
Qxf7 {[%clk 0:01:35.2]} 32... Rxf7 {[%clk 0:00:58.9]} 33. Rh6 {[%clk 0:01:34.3]}
33... Rc7 {[%clk 0:00:55.7]} 34. Rd6 {[%clk 0:01:30.7]} 34... Kg7 {[%clk
0:00:56.1]} 35. Kf1 {[%clk 0:01:30.3]} 35... Kf7 {[%clk 0:00:57]} 36. Ke2 {[%clk
0:01:30.7]} 36... Ke7 {[%clk 0:00:58.4]} 37. Rh6 {[%clk 0:01:31.4]} 37... Kd8
{[%clk 0:00:59.7]} 38. Ke3 {[%clk 0:01:31.7]} 38... Rg7 {[%clk 0:00:59.4]} 39.
g3 {[%clk 0:01:30.1]} 39... Kc7 {[%clk 0:00:59.9]} 40. f3 {[%clk 0:01:29.4]}
40... exf3 {[%clk 0:00:56.4]} 41. Kxf3 {[%clk 0:01:31.3]} 41... Kb6 {[%clk
0:00:56.9]} 42. b5 {[%clk 0:01:29.7]} 42... Ka5 {[%clk 0:00:56.5]} 43. bxc6
{[%clk 0:01:26.8]} 43... Kxa4 {[%clk 0:00:57.8]} 44. Rd6 {[%clk 0:01:26.4]}
44... Rc7 {[%clk 0:00:58.2]} 45. Rxd5 {[%clk 0:01:13.3]} 45... Rxc6 {[%clk
0:00:57.1]} 46. Rd7 {[%clk 0:01:07.7]} 46... a5 {[%clk 0:00:57.6]} 47. Rxh7
{[%clk 0:01:03.3]} 47... Rxc3+ {[%clk 0:00:58.6]} 48. Ke4 {[%clk 0:01:04.5]}
48... Kb5 {[%clk 0:00:57.1]} 49. Rb7+ {[%clk 0:01:04]} 49... Kc6 {[%clk
0:00:56.4]} 50. Rb2 {[%clk 0:01:02.6]} 50... a4 {[%clk 0:00:54.4]} 51. d5+
{[%clk 0:01:03.7]} 51... Kc5 {[%clk 0:00:43.4]} 52. Rd2 {[%clk 0:00:49.4]} 52...
Kd6 {[%clk 0:00:40.3]} 53. Kd4 {[%clk 0:00:47.6]} 53... Rc5 {[%clk 0:00:38.3]}
54. Ke4 {[%clk 0:00:42.7]} 54... a3 {[%clk 0:00:36.9]} 55. Ra2 {[%clk
0:00:43.1]} 55... Ra5 {[%clk 0:00:36.3]} 56. Kd3 {[%clk 0:00:38.6]} 56... Kxd5
{[%clk 0:00:34.7]} 57. Kc3 {[%clk 0:00:39.5]} 57... Ke4 {[%clk 0:00:32.7]} 58.
Kb4 {[%clk 0:00:39]} 58... Rh5 {[%clk 0:00:31.6]} 59. h4 {[%clk 0:00:37.9]}
59... Kf3 {[%clk 0:00:26]} 60. Rxa3+ {[%clk 0:00:35.6]} 60... Kg4 {[%clk
0:00:27.4]} 61. Kc4 {[%clk 0:00:33.2]} 61... Re5 {[%clk 0:00:27.6]} 62. Kd4
{[%clk 0:00:30.6]} 62... Re8 {[%clk 0:00:29.1]} 63. Re3 {[%clk 0:00:29.5]} 63...
Rd8+ {[%clk 0:00:30.4]} 64. Ke4 {[%clk 0:00:29.4]} 64... Rf8 {[%clk 0:00:28.4]}
65. Kd3 {[%clk 0:00:27.6]} 65... Rf2 {[%clk 0:00:26.8]} 66. Re2 {[%clk
0:00:17.7]} 66... Rf3+ {[%clk 0:00:23.5]} 67. Re3 {[%clk 0:00:18.7]} 67... Rf2
{[%clk 0:00:24.7]} 68. Ke4 {[%clk 0:00:19.8]} 68... Rf8 {[%clk 0:00:24.4]} 69.
Kd5 {[%clk 0:00:19.7]} 69... Rf5+ {[%clk 0:00:22.5]} 70. Ke6 {[%clk 0:00:20]}
70... Rf1 {[%clk 0:00:23.5]} 71. Ke7 {[%clk 0:00:20.3]} 71... Rf5 {[%clk
0:00:20.6]} 72. Re6 {[%clk 0:00:19.6]} 72... Kxg3 {[%clk 0:00:19.9]} 73. Rf6
{[%clk 0:00:18.6]} 73... Rxf6 {[%clk 0:00:20.5]} 74. Kxf6 {[%clk 0:00:20.5]}
74... Kxh4 {[%clk 0:00:21.9]} 1/2-1/2

[Event "*** Titled Tuesday Blitz"]
[Site "Chess.com"]
[Date "2019.07.02"]
[Round "1"]
[White "DACF2905"]
[Black "csati17"]
[Result "1-0"]
[WhiteElo "2223"]
[BlackElo "2548"]
[TimeControl "180+2"]
[EndTime "13:11:25 PDT"]
[Termination "DACF2905 won by checkmate"]

1. e4 {[%clk 0:03:00.9]} 1... e6 {[%clk 0:03:00.8]} 2. d4 {[%clk 0:03:01.4]}
2... d5 {[%clk 0:03:02.5]} 3. Nc3 {[%clk 0:03:02]} 3... Bb4 {[%clk 0:03:03.4]}
4. e5 {[%clk 0:03:02.5]} 4... Ne7 {[%clk 0:03:04.4]} 5. f4 {[%clk 0:03:02.7]}
5... b6 {[%clk 0:03:04]} 6. Nf3 {[%clk 0:03:03]} 6... Ba6 {[%clk 0:03:04.4]} 7.
a3 {[%clk 0:03:00.7]} 7... Bxc3+ {[%clk 0:03:04.4]} 8. bxc3 {[%clk 0:03:00.9]}
8... Bxf1 {[%clk 0:03:06.3]} 9. Rxf1 {[%clk 0:03:00.6]} 9... c5 {[%clk
0:03:08.2]} 10. Kf2 {[%clk 0:02:59.5]} 10... Nbc6 {[%clk 0:03:07.9]} 11. Kg1
{[%clk 0:02:59.7]} 11... Rc8 {[%clk 0:03:06.8]} 12. a4 {[%clk 0:03:00.2]} 12...
cxd4 {[%clk 0:02:53.4]} 13. cxd4 {[%clk 0:03:00.4]} 13... Nb4 {[%clk 0:02:54.1]}
14. Rf2 {[%clk 0:02:58.2]} 14... Nf5 {[%clk 0:02:41.5]} 15. Rb1 {[%clk
0:02:43.7]} 15... Nc6 {[%clk 0:02:37.3]} 16. Ba3 {[%clk 0:02:43.1]} 16... Na5
{[%clk 0:02:29.9]} 17. Qd3 {[%clk 0:01:52.2]} 17... Qd7 {[%clk 0:02:22.5]} 18.
g4 {[%clk 0:01:46.4]} 18... Nh6 {[%clk 0:02:22.4]} 19. Rb5 {[%clk 0:01:27.8]}
19... Qc6 {[%clk 0:01:53.8]} 20. f5 {[%clk 0:01:09]} 20... Nxg4 {[%clk
0:01:34.3]} 21. Rg2 {[%clk 0:01:05.2]} 21... exf5 {[%clk 0:01:35.6]} 22. Qxf5
{[%clk 0:00:52.2]} 22... Ne3 {[%clk 0:01:34.1]} 23. Qg5 {[%clk 0:00:53.1]} 23...
Qe6 {[%clk 0:01:13.7]} 24. Qxe3 {[%clk 0:00:51.6]} 24... Nc4 {[%clk 0:01:14.4]}
25. Qb3 {[%clk 0:00:49.5]} 25... a6 {[%clk 0:01:13.4]} 26. Rb4 {[%clk
0:00:49.7]} 26... O-O {[%clk 0:01:07.2]} 27. Bc1 {[%clk 0:00:45.7]} 27... Qf5
{[%clk 0:01:05.3]} 28. Qd3 {[%clk 0:00:45]} 28... Qh5 {[%clk 0:01:01.8]} 29. Rg5
{[%clk 0:00:42.4]} 29... Qh3 {[%clk 0:01:01.8]} 30. Rg3 {[%clk 0:00:40.1]} 30...
Qh5 {[%clk 0:01:02.6]} 31. Ng5 {[%clk 0:00:34.7]} 31... Rc6 {[%clk 0:00:53.7]}
32. Rh3 {[%clk 0:00:34.5]} 32... Qg6 {[%clk 0:00:54.6]} 33. Qxg6 {[%clk
0:00:34.4]} 33... Rxg6 {[%clk 0:00:55.4]} 34. Rg3 {[%clk 0:00:34.9]} 34... h6
{[%clk 0:00:55.7]} 35. Nf3 {[%clk 0:00:35.6]} 35... Rc6 {[%clk 0:00:57.1]} 36.
Nh4 {[%clk 0:00:31.4]} 36... Na5 {[%clk 0:00:47.2]} 37. Nf5 {[%clk 0:00:30.3]}
37... g6 {[%clk 0:00:47.9]} 38. Nxh6+ {[%clk 0:00:29.8]} 38... Kh7 {[%clk
0:00:46]} 39. Ng4 {[%clk 0:00:31.7]} 39... Rxc2 {[%clk 0:00:47.1]} 40. Nf6+
{[%clk 0:00:32.1]} 40... Kg7 {[%clk 0:00:47.9]} 41. Bg5 {[%clk 0:00:31.2]} 41...
Rh8 {[%clk 0:00:45.5]} 42. h4 {[%clk 0:00:31.7]} 42... Nc6 {[%clk 0:00:40.1]}
43. Rxb6 {[%clk 0:00:31.3]} 43... Nxd4 {[%clk 0:00:41.3]} 44. Rg2 {[%clk
0:00:28.7]} 44... Nf3+ {[%clk 0:00:36]} 45. Kf1 {[%clk 0:00:21]} 45... Rxg2
{[%clk 0:00:32]} 46. Kxg2 {[%clk 0:00:21.5]} 46... Nxe5 {[%clk 0:00:33.9]} 47.
Nxd5 {[%clk 0:00:21.6]} 47... Re8 {[%clk 0:00:30.6]} 48. Bf6+ {[%clk 0:00:22.3]}
48... Kh6 {[%clk 0:00:31.7]} 49. Bg5+ {[%clk 0:00:22.2]} 49... Kg7 {[%clk
0:00:32.5]} 50. Rxa6 {[%clk 0:00:23.4]} 50... Nd3 {[%clk 0:00:29.7]} 51. Nf6
{[%clk 0:00:23.7]} 51... Rc8 {[%clk 0:00:28.6]} 52. Ra7 {[%clk 0:00:24.1]} 52...
Rc2+ {[%clk 0:00:27.8]} 53. Kf1 {[%clk 0:00:25.2]} 53... Rf2+ {[%clk 0:00:27.9]}
54. Kg1 {[%clk 0:00:26.4]} 54... Ra2 {[%clk 0:00:29.1]} 55. Ne4 {[%clk 0:00:27]}
55... Kf8 {[%clk 0:00:20.6]} 56. Nd6 {[%clk 0:00:26.8]} 56... Ne5 {[%clk
0:00:21.3]} 57. Bf6 {[%clk 0:00:26.3]} 57... Nf3+ {[%clk 0:00:20.6]} 58. Kf1
{[%clk 0:00:27.5]} 58... Kg8 {[%clk 0:00:21.6]} 59. Nxf7 {[%clk 0:00:26.8]}
59... Nd2+ {[%clk 0:00:16.5]} 60. Ke1 {[%clk 0:00:26.9]} 60... Ne4 {[%clk
0:00:16.6]} 61. Nh6+ {[%clk 0:00:27.5]} 61... Kf8 {[%clk 0:00:18.1]} 62. Be5
{[%clk 0:00:26]} 62... Ke8 {[%clk 0:00:17.4]} 63. Ng4 {[%clk 0:00:26]} 63... Kd8
{[%clk 0:00:17.6]} 64. Nf6 {[%clk 0:00:26.9]} 64... Nc5 {[%clk 0:00:16.5]} 65.
Bd6 {[%clk 0:00:26.1]} 65... Rxa4 {[%clk 0:00:15.4]} 66. Bxc5 {[%clk 0:00:24.2]}
66... Rxh4 {[%clk 0:00:15.4]} 67. Kf2 {[%clk 0:00:21.8]} 67... Rc4 {[%clk
0:00:14.4]} 68. Be7+ {[%clk 0:00:21.7]} 68... Kc8 {[%clk 0:00:15.4]} 69. Kf3
{[%clk 0:00:23.2]} 69... g5 {[%clk 0:00:15.7]} 70. Ng4 {[%clk 0:00:23.4]} 70...
Kb8 {[%clk 0:00:16.1]} 71. Rd7 {[%clk 0:00:23.4]} 71... Kc8 {[%clk 0:00:16.2]}
72. Rd3 {[%clk 0:00:23.8]} 72... Rf4+ {[%clk 0:00:16.6]} 73. Kg3 {[%clk
0:00:24.4]} 73... Rf5 {[%clk 0:00:18.5]} 74. Rd6 {[%clk 0:00:23.9]} 74... Kc7
{[%clk 0:00:19.1]} 75. Rg6 {[%clk 0:00:24.6]} 75... Kd7 {[%clk 0:00:20.1]} 76.
Bxg5 {[%clk 0:00:25.5]} 76... Ra5 {[%clk 0:00:21.3]} 77. Bf4 {[%clk 0:00:25.7]}
77... Ra3+ {[%clk 0:00:22.3]} 78. Kh4 {[%clk 0:00:26.4]} 78... Ke7 {[%clk
0:00:24.2]} 79. Rg5 {[%clk 0:00:26.1]} 79... Ra1 {[%clk 0:00:25]} 80. Rb5 {[%clk
0:00:25.9]} 80... Ke6 {[%clk 0:00:26]} 81. Kg5 {[%clk 0:00:26.5]} 81... Ra8
{[%clk 0:00:26.6]} 82. Nf6 {[%clk 0:00:26.1]} 82... Rf8 {[%clk 0:00:26.7]} 83.
Rb6+ {[%clk 0:00:26.8]} 83... Kf7 {[%clk 0:00:27.7]} 84. Kf5 {[%clk 0:00:25.2]}
84... Ra8 {[%clk 0:00:28]} 85. Rb7+ {[%clk 0:00:26]} 85... Kf8 {[%clk
0:00:29.8]} 86. Bh6# {[%clk 0:00:26.6]} 1-0

[Event "*** Titled Tuesday Blitz"]
[Site "Chess.com"]
[Date "2019.07.02"]
[Round "1"]
[White "Firouzja2003"]
[Black "adriangschnitzer"]
[Result "1/2-1/2"]
[WhiteElo "2956"]
[BlackElo "2473"]
[TimeControl "180+2"]
[EndTime "13:12:25 PDT"]
[Termination "Game drawn - insufficient material"]

1. d4 {[%clk 0:00:12.6]} 1... Nf6 {[%clk 0:02:54.4]} 2. c4 {[%clk 0:00:13.9]}
2... c5 {[%clk 0:02:55.9]} 3. d5 {[%clk 0:00:15.1]} 3... b5 {[%clk 0:02:57.4]}
4. cxb5 {[%clk 0:00:17]} 4... a6 {[%clk 0:02:58.9]} 5. b6 {[%clk 0:00:18.6]}
5... e6 {[%clk 0:02:59.8]} 6. Nc3 {[%clk 0:00:20.5]} 6... Nxd5 {[%clk
0:03:00.6]} 7. Nxd5 {[%clk 0:00:21.7]} 7... exd5 {[%clk 0:03:02.5]} 8. Qxd5
{[%clk 0:00:23.2]} 8... Nc6 {[%clk 0:03:03.5]} 9. Nf3 {[%clk 0:00:23.4]} 9...
Rb8 {[%clk 0:02:59.5]} 10. Ne5 {[%clk 0:00:20.9]} 10... Qf6 {[%clk 0:02:51.5]}
11. Nxc6 {[%clk 0:00:18.8]} 11... dxc6 {[%clk 0:02:53.4]} 12. Qe4+ {[%clk
0:00:13.7]} 12... Be7 {[%clk 0:02:49.5]} 13. Bf4 {[%clk 0:00:12.9]} 13... Rxb6
{[%clk 0:02:40.8]} 14. Be5 {[%clk 0:00:12]} 14... Qe6 {[%clk 0:02:20]} 15. Qf4
{[%clk 0:00:13.2]} 15... O-O {[%clk 0:02:18.3]} 16. e3 {[%clk 0:00:15.1]} 16...
Bf6 {[%clk 0:02:03.9]} 17. Bxf6 {[%clk 0:00:16]} 17... Qxf6 {[%clk 0:02:05.8]}
18. Qxf6 {[%clk 0:00:17.2]} 18... gxf6 {[%clk 0:02:07.7]} 19. O-O-O {[%clk
0:00:18.6]} 19... Be6 {[%clk 0:02:07.6]} 20. a3 {[%clk 0:00:07]} 20... Rfb8
{[%clk 0:02:07.6]} 21. Rd2 {[%clk 0:00:08.5]} 21... c4 {[%clk 0:02:07]} 22. Rc2
{[%clk 0:00:10]} 22... c3 {[%clk 0:02:05.6]} 23. b4 {[%clk 0:00:06.8]} 23... c5
{[%clk 0:01:55.8]} 24. Rxc3 {[%clk 0:00:07.6]} 24... cxb4 {[%clk 0:01:56.5]} 25.
axb4 {[%clk 0:00:09.5]} 25... Rxb4 {[%clk 0:01:57.8]} 26. Bd3 {[%clk 0:00:11.2]}
26... Rb3 {[%clk 0:01:51.9]} 27. Rxb3 {[%clk 0:00:09.2]} 27... Rxb3 {[%clk
0:01:53.8]} 28. Kc2 {[%clk 0:00:11.1]} 28... Ra3 {[%clk 0:01:52.5]} 29. f4
{[%clk 0:00:12]} 29... Ra2+ {[%clk 0:01:50.5]} 30. Kc3 {[%clk 0:00:13.5]} 30...
Rxg2 {[%clk 0:01:52.4]} 31. Bxa6 {[%clk 0:00:14.4]} 31... Bd5 {[%clk 0:01:51.8]}
32. Bd3 {[%clk 0:00:10]} 32... Rc2+ {[%clk 0:01:46.1]} 33. Bxc2 {[%clk
0:00:10.8]} 33... Bxh1 {[%clk 0:01:48]} 34. Kd4 {[%clk 0:00:12.1]} 34... Bb7
{[%clk 0:01:45.1]} 35. Kc5 {[%clk 0:00:13.1]} 35... Kg7 {[%clk 0:01:46.4]} 36.
Kd6 {[%clk 0:00:14.5]} 36... Bf3 {[%clk 0:01:45.4]} 37. Bb3 {[%clk 0:00:13]}
37... Kf8 {[%clk 0:01:40.9]} 38. Bc2 {[%clk 0:00:09.4]} 38... h6 {[%clk
0:01:41.4]} 39. Bd3 {[%clk 0:00:09.7]} 39... Bg2 {[%clk 0:01:37.2]} 40. Bc4
{[%clk 0:00:10.4]} 40... Bf3 {[%clk 0:01:37.9]} 41. Bd5 {[%clk 0:00:11.7]} 41...
Bg4 {[%clk 0:01:34.3]} 42. Be4 {[%clk 0:00:12.2]} 42... Bh3 {[%clk 0:01:32.7]}
43. Bc6 {[%clk 0:00:13.4]} 43... Bg4 {[%clk 0:01:33.4]} 44. Bd5 {[%clk
0:00:14.6]} 44... Bh3 {[%clk 0:01:34.4]} 45. Kc5 {[%clk 0:00:16.3]} 45... Bg4
{[%clk 0:01:33.3]} 46. Kd4 {[%clk 0:00:18.2]} 46... Bf5 {[%clk 0:01:32.6]} 47.
e4 {[%clk 0:00:18.5]} 47... Bc8 {[%clk 0:01:27.3]} 48. f5 {[%clk 0:00:09]} 48...
Ba6 {[%clk 0:01:23.4]} 49. Ke3 {[%clk 0:00:09.9]} 49... Kg7 {[%clk 0:01:22.4]}
50. Kf4 {[%clk 0:00:11.1]} 50... Be2 {[%clk 0:01:21.9]} 51. Ke3 {[%clk
0:00:12.4]} 51... Bd1 {[%clk 0:01:22.6]} 52. Kd4 {[%clk 0:00:13.8]} 52... Be2
{[%clk 0:01:23.4]} 53. Kc5 {[%clk 0:00:15.7]} 53... Kf8 {[%clk 0:01:23.8]} 54.
Kd6 {[%clk 0:00:17]} 54... Bd1 {[%clk 0:01:23.9]} 55. h4 {[%clk 0:00:10.1]}
55... Bc2 {[%clk 0:01:23.5]} 56. Kc5 {[%clk 0:00:08.1]} 56... Bd1 {[%clk
0:01:21.4]} 57. Kb6 {[%clk 0:00:09.4]} 57... Bc2 {[%clk 0:01:21.2]} 58. Kc6
{[%clk 0:00:10.7]} 58... Bd1 {[%clk 0:01:21.4]} 59. Kd7 {[%clk 0:00:11.9]} 59...
Ba4+ {[%clk 0:01:21.5]} 60. Kc7 {[%clk 0:00:12.9]} 60... Bc2 {[%clk 0:01:22.4]}
61. Kd6 {[%clk 0:00:14.2]} 61... Bd1 {[%clk 0:01:23.4]} 62. e5 {[%clk
0:00:15.4]} 62... fxe5 {[%clk 0:01:24.2]} 63. Kxe5 {[%clk 0:00:17.3]} 63... Kg7
{[%clk 0:01:15.1]} 64. f6+ {[%clk 0:00:18.7]} 64... Kf8 {[%clk 0:01:14.3]} 65.
Kf4 {[%clk 0:00:16.9]} 65... Kg8 {[%clk 0:01:09]} 66. Bf3 {[%clk 0:00:16.2]}
66... Bc2 {[%clk 0:00:55.8]} 67. Kg4 {[%clk 0:00:16.9]} 67... Bg6 {[%clk
0:00:54]} 68. Bc6 {[%clk 0:00:17.1]} 68... Kf8 {[%clk 0:00:50.9]} 69. Bb5 {[%clk
0:00:18.4]} 69... Kg8 {[%clk 0:00:51.4]} 70. Ba4 {[%clk 0:00:20]} 70... Kf8
{[%clk 0:00:51.9]} 71. Bc6 {[%clk 0:00:21.1]} 71... Kg8 {[%clk 0:00:52.7]} 72.
Bd7 {[%clk 0:00:22.7]} 72... Bc2 {[%clk 0:00:40.6]} 73. Bb5 {[%clk 0:00:19.4]}
73... Bd1+ {[%clk 0:00:40.6]} 74. Kf4 {[%clk 0:00:20.6]} 74... Kf8 {[%clk
0:00:39.2]} 75. Bd7 {[%clk 0:00:18.1]} 75... Kg8 {[%clk 0:00:39]} 76. Bg4 {[%clk
0:00:18]} 76... Bc2 {[%clk 0:00:38.9]} 77. Bf5 {[%clk 0:00:17.3]} 77... Bd1
{[%clk 0:00:39.7]} 78. Be4 {[%clk 0:00:18.7]} 78... Kf8 {[%clk 0:00:40]} 79. Bf3
{[%clk 0:00:20.1]} 79... Bc2 {[%clk 0:00:40.5]} 80. Kg4 {[%clk 0:00:21.1]} 80...
Bg6 {[%clk 0:00:39.5]} 81. Bc6 {[%clk 0:00:21.8]} 81... Kg8 {[%clk 0:00:38.4]}
82. Bb5 {[%clk 0:00:22.7]} 82... Kf8 {[%clk 0:00:38.2]} 83. Bd7 {[%clk
0:00:23.7]} 83... Kg8 {[%clk 0:00:18.8]} 84. Bf5 {[%clk 0:00:24.4]} 84... Kf8
{[%clk 0:00:17.5]} 85. Kf4 {[%clk 0:00:23.4]} 85... Ke8 {[%clk 0:00:14.4]} 86.
Ke5 {[%clk 0:00:20.9]} 86... Bxf5 {[%clk 0:00:10.3]} 87. Kxf5 {[%clk 0:00:22.2]}
87... Kd7 {[%clk 0:00:11.7]} 88. Kg4 {[%clk 0:00:22.3]} 88... Ke6 {[%clk
0:00:12.3]} 89. Kh5 {[%clk 0:00:23.9]} 89... Kxf6 {[%clk 0:00:10.8]} 90. Kxh6
{[%clk 0:00:25.7]} 90... Kf5 {[%clk 0:00:10.8]} 91. Kg7 {[%clk 0:00:21.6]} 91...
Kg4 {[%clk 0:00:10.3]} 92. Kxf7 {[%clk 0:00:23.1]} 92... Kxh4 {[%clk 0:00:11.2]}
1/2-1/2